[Event "Titled Tuesday Blitz July 11 Late 2023"]
[White "Banzea, Alexandru-Bogdan"]
[Black "kripri"]
[WhiteFideId "1232622"]
[WhiteElo "2616"]
[BlackElo "2335"]
[Result "1-0"]
[Round "1"]
[TimeControl "180+2"]
[Date "2023.07.11"]
[WhiteClock "0:00:05"]
[BlackClock "0:00:09"]
[Board "124"]

1. d4 {[%clk 0:03:00]}  d5 {[%clk 0:02:58]} 2. Nc3 {[%clk 0:03:01]}  e6 {[%clk 0:02:53]} 3. Bf4 {[%clk 0:03:01]}  a6 {[%clk 0:02:51]} 4. e3 {[%clk 0:03:00]}  Nf6 {[%clk 0:02:51]} 5. Nf3 {[%clk 0:02:53]}  Bd6 {[%clk 0:02:51]} 6. Bd3 {[%clk 0:02:49]}  Bxf4 {[%clk 0:02:49]} 7. exf4 {[%clk 0:02:50]}  O-O {[%clk 0:02:49]} 8. Ne5 {[%clk 0:02:49]}  c5 {[%clk 0:02:45]} 9. dxc5 {[%clk 0:02:42]}  Qa5 {[%clk 0:02:29]} 10. Qf3 {[%clk 0:02:31]}  Qxc5 {[%clk 0:02:28]} 11. Qh3 {[%clk 0:02:31]}  h6 {[%clk 0:01:57]} 12. g4 {[%clk 0:02:25]}  d4 {[%clk 0:01:53]} 13. g5 {[%clk 0:02:04]}  hxg5 {[%clk 0:01:39]} 14. O-O-O {[%clk 0:01:22]}  gxf4 {[%clk 0:00:57]} 15. Ng4 {[%clk 0:01:17]}  Nbd7 {[%clk 0:00:52]} 16. Rhg1 {[%clk 0:01:14]}  Rd8 {[%clk 0:00:38]} 17. Nxf6+ {[%clk 0:01:12]}  Nxf6 {[%clk 0:00:38]} 18. Qh6 {[%clk 0:01:12]}  Kf8 {[%clk 0:00:30]} 19. Qxg7+ {[%clk 0:01:05]}  Ke7 {[%clk 0:00:30]} 20. Rg6 {[%clk 0:00:34]}  Ne8 {[%clk 0:00:20]} 21. Qh7 {[%clk 0:00:24]}  Nf6 {[%clk 0:00:18]} 22. Rxf6 {[%clk 0:00:21]}  dxc3 {[%clk 0:00:15]} 23. Qxf7+ {[%clk 0:00:12]}  Kd6 {[%clk 0:00:16]} 24. Bh7+ {[%clk 0:00:08]}  Kc6 {[%clk 0:00:12]} 25. Rxd8 {[%clk 0:00:07]}  cxb2+ {[%clk 0:00:12]} 26. Kb1 {[%clk 0:00:07]}  Qxf2 {[%clk 0:00:10]} 27. Be4+ {[%clk 0:00:05]}  Kb6 {[%clk 0:00:10]} 28. Rxe6+ {[%clk 0:00:04]}  Bxe6 {[%clk 0:00:10]} 29. Qxe6+ {[%clk 0:00:05]}  Ka7 {[%clk 0:00:10]} 30. Rxa8+ {[%clk 0:00:04]}  Kxa8 {[%clk 0:00:10]} 31. Qc8+ {[%clk 0:00:05]}  Ka7 {[%clk 0:00:09]} 32. Qxb7# {[%clk 0:00:05]} 1-0


[Site "https://www.chess.com"]

[Event "Titled Tuesday Blitz July 11 Late 2023"]
[White "kiwibobo"]
[Black "Vlassov, Nikolai"]
[BlackFideId "4103360"]
[WhiteElo "2314"]
[BlackElo "2608"]
[Result "1-0"]
[Round "1"]
[TimeControl "180+2"]
[Date "2023.07.11"]
[WhiteClock "0:01:24"]
[BlackClock "0:00:20"]
[Board "131"]

1. e4 {[%clk 0:02:59]}  Nc6 {[%clk 0:02:59]} 2. Nf3 {[%clk 0:02:59]}  d5 {[%clk 0:02:58]} 3. exd5 {[%clk 0:02:59]}  Qxd5 {[%clk 0:02:58]} 4. Nc3 {[%clk 0:02:59]}  Qa5 {[%clk 0:02:58]} 5. d4 {[%clk 0:02:59]}  Bg4 {[%clk 0:02:57]} 6. Bd2 {[%clk 0:02:42]}  O-O-O {[%clk 0:02:56]} 7. d5 {[%clk 0:02:33]}  Nb4 {[%clk 0:02:53]} 8. Bc4 {[%clk 0:02:27]}  Nf6 {[%clk 0:02:53]} 9. O-O {[%clk 0:02:24]}  Qc5 {[%clk 0:02:37]} 10. Bb3 {[%clk 0:02:19]}  Nbxd5 {[%clk 0:02:35]} 11. Nxd5 {[%clk 0:02:13]}  Nxd5 {[%clk 0:02:35]} 12. h3 {[%clk 0:02:12]}  Bh5 {[%clk 0:02:35]} 13. g4 {[%clk 0:02:10]}  Bg6 {[%clk 0:02:34]} 14. Ne5 {[%clk 0:02:06]}  e6 {[%clk 0:02:29]} 15. Qf3 {[%clk 0:02:03]}  f6 {[%clk 0:01:32]} 16. Nxg6 {[%clk 0:02:00]}  hxg6 {[%clk 0:01:32]} 17. Rfe1 {[%clk 0:01:54]}  e5 {[%clk 0:01:30]} 18. Rad1 {[%clk 0:01:52]}  g5 {[%clk 0:01:20]} 19. Be3 {[%clk 0:01:44]}  Qa5 {[%clk 0:01:01]} 20. Bxd5 {[%clk 0:01:40]}  Bd6 {[%clk 0:00:55]} 21. Bxb7+ {[%clk 0:01:36]}  Kb8 {[%clk 0:00:56]} 22. Bd5 {[%clk 0:01:35]}  Bc5 {[%clk 0:00:48]} 23. Bxc5 {[%clk 0:01:35]}  Qxc5 {[%clk 0:00:48]} 24. Rd3 {[%clk 0:01:32]}  c6 {[%clk 0:00:47]} 25. Rb3+ {[%clk 0:01:28]}  Kc7 {[%clk 0:00:46]} 26. Bxc6 {[%clk 0:01:29]}  Qxc6 {[%clk 0:00:37]} 27. Rc3 {[%clk 0:01:28]}  Rd6 {[%clk 0:00:37]} 28. Rxc6+ {[%clk 0:01:27]}  Rxc6 {[%clk 0:00:38]} 29. Qd3 {[%clk 0:01:25]}  Rd8 {[%clk 0:00:36]} 30. Qb3 {[%clk 0:01:26]}  Rd2 {[%clk 0:00:31]} 31. c3 {[%clk 0:01:23]}  Rd3 {[%clk 0:00:29]} 32. Rd1 {[%clk 0:01:23]}  Rxh3 {[%clk 0:00:27]} 33. Qf7+ {[%clk 0:01:24]}  Kb6 {[%clk 0:00:20]} 34. Rd7 {[%clk 0:01:24]} 1-0


[Site "https://www.chess.com"]

[Event "Titled Tuesday Blitz July 11 Late 2023"]
[White "HamedWafa4"]
[Black "Tsyhanchuk, Stanislav"]
[BlackFideId "13505130"]
[WhiteElo "2607"]
[BlackElo "2313"]
[Result "0-1"]
[Round "1"]
[TimeControl "180+2"]
[Date "2023.07.11"]
[WhiteClock "0:00:29"]
[BlackClock "0:00:10"]
[Board "132"]

1. d4 {[%clk 0:02:57]}  Nf6 {[%clk 0:02:59]} 2. Nc3 {[%clk 0:02:55]}  d5 {[%clk 0:02:59]} 3. Bf4 {[%clk 0:02:54]}  a6 {[%clk 0:02:59]} 4. e3 {[%clk 0:02:47]}  e6 {[%clk 0:02:59]} 5. a3 {[%clk 0:02:32]}  c5 {[%clk 0:02:55]} 6. Nf3 {[%clk 0:02:30]}  Nc6 {[%clk 0:02:54]} 7. Be2 {[%clk 0:02:22]}  cxd4 {[%clk 0:02:51]} 8. exd4 {[%clk 0:02:21]}  Bd6 {[%clk 0:02:50]} 9. Bg5 {[%clk 0:02:21]}  h6 {[%clk 0:02:47]} 10. Bh4 {[%clk 0:02:21]}  O-O {[%clk 0:02:46]} 11. O-O {[%clk 0:02:20]}  Be7 {[%clk 0:02:43]} 12. Bd3 {[%clk 0:02:18]}  b5 {[%clk 0:02:39]} 13. Ne2 {[%clk 0:02:09]}  Qc7 {[%clk 0:02:34]} 14. c3 {[%clk 0:02:08]}  Bb7 {[%clk 0:02:32]} 15. Re1 {[%clk 0:02:04]}  Ne4 {[%clk 0:02:30]} 16. Bxe7 {[%clk 0:02:03]}  Nxe7 {[%clk 0:02:27]} 17. Ng3 {[%clk 0:02:03]}  f5 {[%clk 0:02:23]} 18. Ne5 {[%clk 0:02:01]}  Nc6 {[%clk 0:02:14]} 19. Nxc6 {[%clk 0:01:53]}  Bxc6 {[%clk 0:02:12]} 20. f3 {[%clk 0:01:54]}  Ng5 {[%clk 0:02:09]} 21. Qd2 {[%clk 0:01:49]}  Rae8 {[%clk 0:01:50]} 22. Ne2 {[%clk 0:01:46]}  f4 {[%clk 0:01:47]} 23. Nc1 {[%clk 0:01:40]}  e5 {[%clk 0:01:41]} 24. dxe5 {[%clk 0:01:39]}  Rxe5 {[%clk 0:01:41]} 25. Nb3 {[%clk 0:01:40]}  Rfe8 {[%clk 0:01:35]} 26. Nd4 {[%clk 0:01:36]}  Re3 {[%clk 0:01:26]} 27. Nc2 {[%clk 0:01:27]}  Rxf3 {[%clk 0:01:21]} 28. Rxe8+ {[%clk 0:01:26]}  Bxe8 {[%clk 0:01:22]} 29. h4 {[%clk 0:01:26]}  Qc5+ {[%clk 0:00:35]} 30. Nd4 {[%clk 0:01:25]}  Rg3 {[%clk 0:00:32]} 31. Kh2 {[%clk 0:01:12]}  Qc7 {[%clk 0:00:17]} 32. Re1 {[%clk 0:00:58]}  Ne4 {[%clk 0:00:17]} 33. Bxe4 {[%clk 0:00:55]}  dxe4 {[%clk 0:00:17]} 34. Rxe4 {[%clk 0:00:54]}  f3 {[%clk 0:00:14]} 35. Rxe8+ {[%clk 0:00:50]}  Kf7 {[%clk 0:00:14]} 36. Rf8+ {[%clk 0:00:50]}  Kg6 {[%clk 0:00:11]} 37. Qd3+ {[%clk 0:00:50]}  Kh5 {[%clk 0:00:10]} 38. Rf5+ {[%clk 0:00:43]}  g5 {[%clk 0:00:10]} 39. Kh1 {[%clk 0:00:30]}  fxg2+ {[%clk 0:00:09]} 40. Kg1 {[%clk 0:00:29]}  Rxd3 {[%clk 0:00:10]} 41. Kxg2 {[%clk 0:00:27]}  Qg3+ {[%clk 0:00:10]} 42. Kf1 {[%clk 0:00:27]}  Rd1+ {[%clk 0:00:10]} 43. Ke2 {[%clk 0:00:28]}  Qe1+ {[%clk 0:00:08]} 44. Kf3 {[%clk 0:00:28]}  Rd3+ {[%clk 0:00:09]} 45. Kg2 {[%clk 0:00:29]}  Rg3+ {[%clk 0:00:10]} 46. Kh2 {[%clk 0:00:29]}  Qg1# {[%clk 0:00:10]} 0-1


[Site "https://www.chess.com"]

[Event "Titled Tuesday Blitz July 11 Late 2023"]
[White "AndresDelgado77"]
[Black "NovoselovRoman"]
[WhiteElo "2311"]
[BlackElo "2607"]
[Result "1/2-1/2"]
[Round "1"]
[TimeControl "180+2"]
[Date "2023.07.11"]
[WhiteClock "0:00:34"]
[BlackClock "0:00:31"]
[Board "133"]

1. e4 {[%clk 0:02:56]}  d5 {[%clk 0:02:59]} 2. Nc3 {[%clk 0:02:55]}  dxe4 {[%clk 0:02:59]} 3. Nxe4 {[%clk 0:02:55]}  Nf6 {[%clk 0:03:00]} 4. Nxf6+ {[%clk 0:02:53]}  exf6 {[%clk 0:03:00]} 5. d4 {[%clk 0:02:51]}  Bd6 {[%clk 0:03:00]} 6. Bd3 {[%clk 0:02:48]}  Nc6 {[%clk 0:02:59]} 7. c3 {[%clk 0:02:48]}  O-O {[%clk 0:02:54]} 8. Qc2 {[%clk 0:02:48]}  h6 {[%clk 0:02:47]} 9. Ne2 {[%clk 0:02:46]}  b6 {[%clk 0:02:43]} 10. Be3 {[%clk 0:02:36]}  Bb7 {[%clk 0:02:43]} 11. Bh7+ {[%clk 0:02:31]}  Kh8 {[%clk 0:02:42]} 12. Be4 {[%clk 0:02:32]}  Re8 {[%clk 0:02:39]} 13. Bf3 {[%clk 0:02:27]}  Qc8 {[%clk 0:02:11]} 14. O-O-O {[%clk 0:02:19]}  Ne7 {[%clk 0:02:07]} 15. Bxb7 {[%clk 0:02:11]}  Qxb7 {[%clk 0:02:08]} 16. g4 {[%clk 0:02:11]}  Nd5 {[%clk 0:02:04]} 17. Qd2 {[%clk 0:01:59]}  Nxe3 {[%clk 0:02:04]} 18. fxe3 {[%clk 0:01:59]}  Qf3 {[%clk 0:02:05]} 19. Rdf1 {[%clk 0:01:40]}  Qxe3 {[%clk 0:02:03]} 20. Ng3 {[%clk 0:01:33]}  Qxd2+ {[%clk 0:01:57]} 21. Kxd2 {[%clk 0:01:33]}  Bxg3 {[%clk 0:01:57]} 22. hxg3 {[%clk 0:01:33]}  Kg8 {[%clk 0:01:56]} 23. Rh2 {[%clk 0:01:27]}  Re4 {[%clk 0:01:55]} 24. Rf4 {[%clk 0:01:26]}  Rae8 {[%clk 0:01:50]} 25. Rhf2 {[%clk 0:01:26]}  Re1 {[%clk 0:01:45]} 26. c4 {[%clk 0:01:20]}  Rg1 {[%clk 0:01:42]} 27. R2f3 {[%clk 0:01:10]}  Rg2+ {[%clk 0:01:41]} 28. Kc3 {[%clk 0:01:07]}  Ree2 {[%clk 0:01:41]} 29. b3 {[%clk 0:01:01]}  Rxa2 {[%clk 0:01:32]} 30. Re4 {[%clk 0:00:58]}  a5 {[%clk 0:01:27]} 31. Re8+ {[%clk 0:00:57]}  Kh7 {[%clk 0:01:27]} 32. d5 {[%clk 0:00:49]}  Rgd2 {[%clk 0:01:22]} 33. Rd3 {[%clk 0:00:44]}  Rac2+ {[%clk 0:01:22]} 34. Kd4 {[%clk 0:00:44]}  Re2 {[%clk 0:01:15]} 35. Rde3 {[%clk 0:00:37]}  Rcd2+ {[%clk 0:00:31]} 36. Kc3 {[%clk 0:00:34]} 1/2-1/2


[Site "https://www.chess.com"]

[Event "Titled Tuesday Blitz July 11 Late 2023"]
[White "Piesik, Piotr"]
[Black "Da Matta, Eduardo Cesar"]
[WhiteFideId "1136194"]
[BlackFideId "2193108"]
[WhiteElo "2605"]
[BlackElo "2309"]
[Result "1-0"]
[Round "1"]
[TimeControl "180+2"]
[Date "2023.07.11"]
[WhiteClock "0:01:35"]
[BlackClock "0:00:48"]
[Board "134"]

1. Nf3 {[%clk 0:03:00]}  c5 {[%clk 0:02:58]} 2. g3 {[%clk 0:02:58]}  Nc6 {[%clk 0:02:58]} 3. Bg2 {[%clk 0:02:58]}  g6 {[%clk 0:02:59]} 4. c3 {[%clk 0:02:59]}  Bg7 {[%clk 0:03:00]} 5. d4 {[%clk 0:02:59]}  cxd4 {[%clk 0:02:59]} 6. cxd4 {[%clk 0:03:00]}  d5 {[%clk 0:03:00]} 7. O-O {[%clk 0:03:00]}  Nf6 {[%clk 0:02:58]} 8. Nc3 {[%clk 0:03:00]}  O-O {[%clk 0:02:57]} 9. Ne5 {[%clk 0:03:01]}  e6 {[%clk 0:02:50]} 10. Nxc6 {[%clk 0:02:59]}  bxc6 {[%clk 0:02:50]} 11. b3 {[%clk 0:03:00]}  Ba6 {[%clk 0:02:44]} 12. Na4 {[%clk 0:02:58]}  Bb5 {[%clk 0:02:39]} 13. Ba3 {[%clk 0:02:57]}  Re8 {[%clk 0:02:38]} 14. Nc5 {[%clk 0:02:57]}  Nd7 {[%clk 0:02:37]} 15. Rc1 {[%clk 0:02:56]}  Nxc5 {[%clk 0:02:36]} 16. Bxc5 {[%clk 0:02:56]}  a5 {[%clk 0:02:28]} 17. a4 {[%clk 0:02:56]}  Ba6 {[%clk 0:02:27]} 18. Qd2 {[%clk 0:02:54]}  Qc7 {[%clk 0:02:23]} 19. Rc2 {[%clk 0:02:48]}  e5 {[%clk 0:02:22]} 20. dxe5 {[%clk 0:02:39]}  Qxe5 {[%clk 0:02:16]} 21. Re1 {[%clk 0:02:31]}  Qc7 {[%clk 0:02:01]} 22. e3 {[%clk 0:02:30]}  Rad8 {[%clk 0:01:58]} 23. Bd4 {[%clk 0:02:25]}  Bxd4 {[%clk 0:01:52]} 24. Qxd4 {[%clk 0:02:26]}  Qb7 {[%clk 0:01:45]} 25. Rc3 {[%clk 0:02:22]}  Rb8 {[%clk 0:01:39]} 26. Rec1 {[%clk 0:02:20]}  Rec8 {[%clk 0:01:29]} 27. Bh3 {[%clk 0:02:17]}  Rc7 {[%clk 0:01:25]} 28. Qc5 {[%clk 0:02:09]}  Qb4 {[%clk 0:01:21]} 29. Qxb4 {[%clk 0:02:05]}  Rxb4 {[%clk 0:01:22]} 30. Rxc6 {[%clk 0:02:04]}  Rxc6 {[%clk 0:01:21]} 31. Rxc6 {[%clk 0:02:05]}  Bd3 {[%clk 0:01:14]} 32. Rc3 {[%clk 0:02:01]}  Bb1 {[%clk 0:01:14]} 33. Bg2 {[%clk 0:01:59]}  Be4 {[%clk 0:01:13]} 34. Bf1 {[%clk 0:01:54]}  Bb1 {[%clk 0:01:11]} 35. Bd3 {[%clk 0:01:52]}  Ba2 {[%clk 0:01:03]} 36. Bc2 {[%clk 0:01:52]}  Kg7 {[%clk 0:01:03]} 37. Kf1 {[%clk 0:01:51]}  Kf6 {[%clk 0:01:03]} 38. Ke2 {[%clk 0:01:51]}  Ke5 {[%clk 0:01:03]} 39. f4+ {[%clk 0:01:51]}  Kd6 {[%clk 0:01:03]} 40. Kd2 {[%clk 0:01:51]}  d4 {[%clk 0:01:02]} 41. exd4 {[%clk 0:01:50]}  Rxd4+ {[%clk 0:01:03]} 42. Rd3 {[%clk 0:01:39]}  Kc5 {[%clk 0:00:59]} 43. Kc3 {[%clk 0:01:39]}  Re4 {[%clk 0:00:52]} 44. Kb2 {[%clk 0:01:35]}  Re2 {[%clk 0:00:52]} 45. Rc3+ {[%clk 0:01:35]}  Kb4 {[%clk 0:00:48]} 46. Rc4# {[%clk 0:01:35]} 1-0


[Site "https://www.chess.com"]

[Event "Titled Tuesday Blitz July 11 Late 2023"]
[White "Chen, Justin"]
[Black "Manon-og, Ramon Jr."]
[WhiteFideId "2098199"]
[BlackFideId "5200776"]
[WhiteElo "2601"]
[BlackElo "2306"]
[Result "1-0"]
[Round "1"]
[TimeControl "180+2"]
[Date "2023.07.11"]
[WhiteClock "0:00:02"]
[BlackClock "0:00:00"]
[Board "136"]

1. e4 {[%clk 0:00:17]}  c5 {[%clk 0:02:58]} 2. Nf3 {[%clk 0:00:17]}  d6 {[%clk 0:02:58]} 3. Bb5+ {[%clk 0:00:17]}  Nd7 {[%clk 0:02:58]} 4. O-O {[%clk 0:00:18]}  a6 {[%clk 0:02:58]} 5. Bxd7+ {[%clk 0:00:18]}  Bxd7 {[%clk 0:02:58]} 6. d4 {[%clk 0:00:19]}  cxd4 {[%clk 0:02:58]} 7. Qxd4 {[%clk 0:00:20]}  e5 {[%clk 0:02:58]} 8. Qd3 {[%clk 0:00:21]}  Rc8 {[%clk 0:02:57]} 9. Nc3 {[%clk 0:00:21]}  h6 {[%clk 0:02:56]} 10. Nd2 {[%clk 0:00:21]}  Nf6 {[%clk 0:02:55]} 11. Nc4 {[%clk 0:00:20]}  Be6 {[%clk 0:02:55]} 12. Ne3 {[%clk 0:00:20]}  Be7 {[%clk 0:02:55]} 13. Rd1 {[%clk 0:00:18]}  O-O {[%clk 0:02:55]} 14. b3 {[%clk 0:00:16]}  Qc7 {[%clk 0:02:51]} 15. Bb2 {[%clk 0:00:17]}  Rfd8 {[%clk 0:02:51]} 16. Rac1 {[%clk 0:00:16]}  b5 {[%clk 0:02:46]} 17. a3 {[%clk 0:00:14]}  Qc5 {[%clk 0:02:42]} 18. h3 {[%clk 0:00:11]}  Rb8 {[%clk 0:02:39]} 19. Rd2 {[%clk 0:00:11]}  a5 {[%clk 0:02:39]} 20. Rcd1 {[%clk 0:00:11]}  b4 {[%clk 0:02:39]} 21. axb4 {[%clk 0:00:12]}  Rxb4 {[%clk 0:02:36]} 22. Ba3 {[%clk 0:00:11]}  Rc8 {[%clk 0:02:26]} 23. Bxb4 {[%clk 0:00:07]}  axb4 {[%clk 0:02:26]} 24. Ncd5 {[%clk 0:00:04]}  Nxd5 {[%clk 0:02:19]} 25. Nxd5 {[%clk 0:00:03]}  Bg5 {[%clk 0:02:17]} 26. Re2 {[%clk 0:00:02]}  Ra8 {[%clk 0:02:08]} 27. Kh2 {[%clk 0:00:02]}  Ra2 {[%clk 0:02:06]} 28. Ne3 {[%clk 0:00:02]}  Be7 {[%clk 0:02:01]} 29. Nc4 {[%clk 0:00:02]}  Ra6 {[%clk 0:01:52]} 30. Ne3 {[%clk 0:00:01]}  Ra2 {[%clk 0:01:49]} 31. Nf5 {[%clk 0:00:02]}  Bxf5 {[%clk 0:01:47]} 32. exf5 {[%clk 0:00:03]}  Qc6 {[%clk 0:01:39]} 33. Qd5 {[%clk 0:00:03]}  Rxc2 {[%clk 0:01:34]} 34. Qxc6 {[%clk 0:00:02]}  Rxc6 {[%clk 0:01:33]} 35. Re4 {[%clk 0:00:02]}  Rc2 {[%clk 0:01:22]} 36. f3 {[%clk 0:00:02]}  Rb2 {[%clk 0:01:10]} 37. Rxb4 {[%clk 0:00:01]}  Kh7 {[%clk 0:01:08]} 38. Rb7 {[%clk 0:00:01]}  Bg5 {[%clk 0:01:08]} 39. Rd3 {[%clk 0:00:01]}  Bf4+ {[%clk 0:01:06]} 40. Kg1 {[%clk 0:00:02]}  Bg3 {[%clk 0:01:04]} 41. Kf1 {[%clk 0:00:02]}  Rf2+ {[%clk 0:01:03]} 42. Kg1 {[%clk 0:00:02]}  Rb2 {[%clk 0:00:57]} 43. Rd1 {[%clk 0:00:03]}  Kg8 {[%clk 0:00:51]} 44. Rb8+ {[%clk 0:00:03]}  Kh7 {[%clk 0:00:51]} 45. Rb7 {[%clk 0:00:04]}  f6 {[%clk 0:00:50]} 46. Rd7 {[%clk 0:00:04]}  h5 {[%clk 0:00:48]} 47. R7xd6 {[%clk 0:00:03]}  Rxb3 {[%clk 0:00:46]} 48. R6d3 {[%clk 0:00:03]}  Rb2 {[%clk 0:00:45]} 49. R3d2 {[%clk 0:00:04]}  Rb4 {[%clk 0:00:44]} 50. Re2 {[%clk 0:00:03]}  Rf4 {[%clk 0:00:44]} 51. Re4 {[%clk 0:00:02]}  Rxf5 {[%clk 0:00:44]} 52. Kf1 {[%clk 0:00:02]}  Rg5 {[%clk 0:00:42]} 53. Rd7 {[%clk 0:00:02]}  f5 {[%clk 0:00:40]} 54. Rc4 {[%clk 0:00:01]}  Rg6 {[%clk 0:00:37]} 55. Ke2 {[%clk 0:00:02]}  h4 {[%clk 0:00:35]} 56. Rcc7 {[%clk 0:00:01]}  Kh6 {[%clk 0:00:34]} 57. Rb7 {[%clk 0:00:02]}  e4 {[%clk 0:00:27]} 58. fxe4 {[%clk 0:00:02]}  fxe4 {[%clk 0:00:27]} 59. Re7 {[%clk 0:00:02]}  Bd6 {[%clk 0:00:21]} 60. Rxe4 {[%clk 0:00:02]}  Rxg2+ {[%clk 0:00:21]} 61. Kf1 {[%clk 0:00:02]}  Rd2 {[%clk 0:00:09]} 62. Rxh4+ {[%clk 0:00:02]}  Kg5 {[%clk 0:00:07]} 63. Rg4+ {[%clk 0:00:03]}  Kf5 {[%clk 0:00:07]} 64. Rbxg7 {[%clk 0:00:03]}  Be5 {[%clk 0:00:04]} 65. R7g5+ {[%clk 0:00:02]}  Kf6 {[%clk 0:00:04]} 66. Rg8 {[%clk 0:00:02]}  Kf5 {[%clk 0:00:00]} 67. Rf8+ {[%clk 0:00:02]} 1-0


[Site "https://www.chess.com"]

[Event "Titled Tuesday Blitz July 11 Late 2023"]
[White "Kostiukov, Alexandr"]
[Black "Geivondian, Arman"]
[WhiteFideId "14108100"]
[BlackFideId "24102032"]
[WhiteElo "2305"]
[BlackElo "2599"]
[Result "1-0"]
[Round "1"]
[TimeControl "180+2"]
[Date "2023.07.11"]
[WhiteClock "0:00:53"]
[BlackClock "0:01:43"]
[Board "137"]

1. g3 {[%clk 0:02:57]}  e5 {[%clk 0:02:59]} 2. Bg2 {[%clk 0:02:57]}  Nf6 {[%clk 0:02:59]} 3. c4 {[%clk 0:02:58]}  d5 {[%clk 0:02:59]} 4. cxd5 {[%clk 0:02:57]}  Nxd5 {[%clk 0:03:00]} 5. Nf3 {[%clk 0:02:57]}  Nc6 {[%clk 0:03:00]} 6. O-O {[%clk 0:02:57]}  Be6 {[%clk 0:03:01]} 7. d4 {[%clk 0:02:56]}  exd4 {[%clk 0:03:01]} 8. Nxd4 {[%clk 0:02:56]}  Nxd4 {[%clk 0:03:02]} 9. Qxd4 {[%clk 0:02:56]}  c6 {[%clk 0:03:03]} 10. Rd1 {[%clk 0:02:53]}  Qb6 {[%clk 0:03:03]} 11. Nc3 {[%clk 0:02:44]}  Bc5 {[%clk 0:03:00]} 12. Qxg7 {[%clk 0:02:34]}  Bxf2+ {[%clk 0:02:59]} 13. Kh1 {[%clk 0:02:34]}  O-O-O {[%clk 0:02:59]} 14. Nxd5 {[%clk 0:02:28]}  cxd5 {[%clk 0:02:55]} 15. Bf4 {[%clk 0:02:25]}  d4 {[%clk 0:02:38]} 16. Rac1+ {[%clk 0:02:18]}  Kd7 {[%clk 0:02:38]} 17. Rc2 {[%clk 0:02:11]}  Rc8 {[%clk 0:02:36]} 18. Rxc8 {[%clk 0:01:59]}  Rxc8 {[%clk 0:02:36]} 19. e3 {[%clk 0:01:59]}  Qxb2 {[%clk 0:02:33]} 20. Rxd4+ {[%clk 0:01:52]}  Qxd4 {[%clk 0:02:28]} 21. Qxd4+ {[%clk 0:01:50]}  Ke8 {[%clk 0:02:28]} 22. Qa4+ {[%clk 0:01:47]}  Bd7 {[%clk 0:02:28]} 23. Qe4+ {[%clk 0:01:47]}  Be6 {[%clk 0:02:28]} 24. Qb1 {[%clk 0:01:36]}  b6 {[%clk 0:02:24]} 25. h4 {[%clk 0:01:34]}  h5 {[%clk 0:02:22]} 26. Bf3 {[%clk 0:01:32]}  Rc3 {[%clk 0:02:21]} 27. Qb5+ {[%clk 0:01:27]}  Ke7 {[%clk 0:02:16]} 28. Qb4+ {[%clk 0:01:25]}  Rc5 {[%clk 0:02:16]} 29. Qd2 {[%clk 0:01:24]}  Bxe3 {[%clk 0:02:06]} 30. Bxe3 {[%clk 0:01:20]}  Rf5 {[%clk 0:02:04]} 31. Bg5+ {[%clk 0:01:19]}  Kf8 {[%clk 0:02:03]} 32. Be4 {[%clk 0:01:13]}  Rf1+ {[%clk 0:01:59]} 33. Kg2 {[%clk 0:01:12]}  Bc4 {[%clk 0:01:52]} 34. Bf3 {[%clk 0:01:08]}  Rb1 {[%clk 0:01:48]} 35. Qd6+ {[%clk 0:01:06]}  Kg8 {[%clk 0:01:48]} 36. Qd8+ {[%clk 0:01:01]}  Kg7 {[%clk 0:01:48]} 37. Qf6+ {[%clk 0:00:54]}  Kg8 {[%clk 0:01:46]} 38. Bh6 {[%clk 0:00:54]}  Rb2+ {[%clk 0:01:46]} 39. Kg1 {[%clk 0:00:53]}  Rb1+ {[%clk 0:01:46]} 40. Kf2 {[%clk 0:00:53]}  Rf1+ {[%clk 0:01:43]} 41. Ke3 {[%clk 0:00:53]} 1-0


[Site "https://www.chess.com"]

[Event "Titled Tuesday Blitz July 11 Late 2023"]
[White "Zavgorodniy, Sergiy"]
[Black "OllieAr"]
[WhiteFideId "14110148"]
[WhiteElo "2591"]
[BlackElo "2304"]
[Result "1-0"]
[Round "1"]
[TimeControl "180+2"]
[Date "2023.07.11"]
[WhiteClock "0:02:06"]
[BlackClock "0:00:29"]
[Board "138"]

1. d4 {[%clk 0:03:00]}  d5 {[%clk 0:02:58]} 2. c4 {[%clk 0:03:00]}  e6 {[%clk 0:02:59]} 3. Nf3 {[%clk 0:02:59]}  Nf6 {[%clk 0:02:58]} 4. e3 {[%clk 0:02:59]}  Be7 {[%clk 0:02:57]} 5. Nbd2 {[%clk 0:02:59]}  O-O {[%clk 0:02:56]} 6. Bd3 {[%clk 0:02:59]}  b6 {[%clk 0:02:55]} 7. O-O {[%clk 0:02:59]}  Bb7 {[%clk 0:02:55]} 8. Qe2 {[%clk 0:03:00]}  Nbd7 {[%clk 0:02:52]} 9. e4 {[%clk 0:03:00]}  dxe4 {[%clk 0:02:46]} 10. Nxe4 {[%clk 0:03:01]}  Nxe4 {[%clk 0:02:47]} 11. Bxe4 {[%clk 0:03:02]}  Bxe4 {[%clk 0:02:47]} 12. Qxe4 {[%clk 0:03:02]}  Nf6 {[%clk 0:02:47]} 13. Qe2 {[%clk 0:03:03]}  c5 {[%clk 0:02:47]} 14. Rd1 {[%clk 0:03:03]}  cxd4 {[%clk 0:02:43]} 15. Nxd4 {[%clk 0:03:04]}  Qc7 {[%clk 0:02:41]} 16. b3 {[%clk 0:03:04]}  Rad8 {[%clk 0:02:40]} 17. Bb2 {[%clk 0:03:04]}  Rfe8 {[%clk 0:02:29]} 18. Nf3 {[%clk 0:03:02]}  Rxd1+ {[%clk 0:02:24]} 19. Rxd1 {[%clk 0:03:03]}  Rd8 {[%clk 0:02:24]} 20. Ne5 {[%clk 0:03:03]}  Rxd1+ {[%clk 0:02:21]} 21. Qxd1 {[%clk 0:03:04]}  Qd6 {[%clk 0:02:21]} 22. Qxd6 {[%clk 0:03:04]}  Bxd6 {[%clk 0:02:22]} 23. Kf1 {[%clk 0:03:04]}  Bxe5 {[%clk 0:02:17]} 24. Bxe5 {[%clk 0:03:03]}  Nd7 {[%clk 0:02:18]} 25. Bd6 {[%clk 0:02:58]}  f6 {[%clk 0:02:17]} 26. Ke2 {[%clk 0:02:53]}  Kf7 {[%clk 0:02:16]} 27. f4 {[%clk 0:02:53]}  g6 {[%clk 0:02:04]} 28. Kd3 {[%clk 0:02:47]}  e5 {[%clk 0:02:04]} 29. fxe5 {[%clk 0:02:45]}  fxe5 {[%clk 0:02:05]} 30. b4 {[%clk 0:02:35]}  Ke6 {[%clk 0:02:05]} 31. Bc7 {[%clk 0:02:35]}  Nf6 {[%clk 0:01:36]} 32. a4 {[%clk 0:02:28]}  Nd7 {[%clk 0:01:22]} 33. a5 {[%clk 0:02:27]}  bxa5 {[%clk 0:00:56]} 34. Bxa5 {[%clk 0:02:27]}  Kd6 {[%clk 0:00:50]} 35. Bd8 {[%clk 0:02:23]}  Nf8 {[%clk 0:00:45]} 36. Bg5 {[%clk 0:02:11]}  Ne6 {[%clk 0:00:44]} 37. Be3 {[%clk 0:02:11]}  a6 {[%clk 0:00:43]} 38. Ke4 {[%clk 0:02:09]}  Nf8 {[%clk 0:00:29]} 39. Bc5+ {[%clk 0:02:06]} 1-0


[Site "https://www.chess.com"]